fUSD/lending_fUSD_20250611
["ID","MTS","AMOUNT","RATE_DAILY","PERIOD"]
[365439842,1749673843273,-1755.54,0.00019178,2]
[365439843,1749673843282,-490.0,0.00019178,2]
[365439844,1749673843291,-490.0,0.00019178,2]
[365439845,1749673843300,-627.29,0.00019178,2]
[365439846,1749673843309,-490.0,0.00019178,2]
[365439847,1749673843319,-575.51,0.00019178,2]
[365439848,1749673843328,-490.0,0.00019178,2]
[365439849,1749673843338,-480.0,0.00019178,2]
[365439850,1749673843347,-480.0,0.00019178,2]
[365439851,1749673843356,-490.0,0.00019178,2]
[365439852,1749673843366,-3120.85,0.00019178,2]
[365439853,1749673843375,-480.0,0.00019178,2]
[365439854,1749673843385,-616.67,0.00019178,2]
[365439855,1749673843394,-1411.87,0.00019178,2]
[365439856,1749673843404,-323.05442012,0.00019178,2]
[365439857,1749673843413,-490.0,0.00019178,2]
[365439858,1749673843423,-509.54,0.00019178,2]
[365439859,1749673843432,-480.0,0.00019178,2]
[365439860,1749673843441,-490.0,0.00019178,2]
[365439861,1749673843451,-5168.62,0.00019178,2]
[365439862,1749673843459,-768.97,0.00019178,2]
[365439863,1749673843469,-613.68369344,0.00019178,2]
[365439864,1749673843479,-490.0,0.00019178,2]
[365439865,1749673843488,-490.0,0.00019178,2]
[365439867,1749673843498,-490.0,0.00019178,2]
[365439869,1749673843507,-490.0,0.00019178,2]
[365439872,1749673843517,-480.0,0.00019178,2]
[365439875,1749673843526,-490.0,0.00019178,2]
[365439877,1749673843535,-490.0,0.00019178,2]
[365439879,1749673843545,-490.0,0.00019178,2]
[365439881,1749673843554,-490.0,0.00019178,2]
[365439883,1749673843562,-596.5,0.00019178,2]
[365439885,1749673843572,-490.0,0.00019178,2]
[365439886,1749673843581,-490.0,0.00019178,2]
[365439889,1749673843590,-2016.91,0.00019178,2]
[365439892,1749673843599,-480.0,0.00019178,2]
[365439894,1749673843609,-667.38,0.00019178,2]
[365439896,1749673843619,-490.0,0.00019178,2]
[365439898,1749673843627,-232.79503237,0.00019178,2]
[365439900,1749673843636,-480.0,0.00019178,2]
[365439902,1749673843645,-480.0,0.00019178,2]
[365439903,1749673843654,-500.0,0.00019178,2]
[365439905,1749673843663,-500.0,0.00019178,2]
[365439907,1749673843672,-500.0,0.00019178,2]
[365439909,1749673843682,-500.0,0.00019178,2]
[365439911,1749673843691,-500.0,0.00019178,2]
[365439913,1749673843700,-500.0,0.00019178,2]
[365439915,1749673843710,-500.0,0.00019178,2]
[365439917,1749673843723,-500.0,0.00019178,2]
[365439919,1749673843732,-417.87966075,0.00019178,2]
[365439921,1749673843741,-500.0,0.00019178,2]
[365439923,1749673843750,-185.33051648,0.00019178,2]
[365439925,1749673843759,-500.0,0.00019178,2]
[365439927,1749673843768,-500.0,0.00019178,2]
[365439929,1749673843777,-500.0,0.00019178,2]
[365439931,1749673843786,-500.0,0.00019178,2]
[365439933,1749673843796,-500.0,0.00019178,2]
[365439934,1749673843806,-480.0,0.00019178,2]
[365439935,1749673843815,-500.0,0.00019178,2]
[365439936,1749673843824,-500.0,0.00019178,2]
[365439937,1749673843833,-500.0,0.00019178,2]
[365439938,1749673843842,-500.0,0.00019178,2]
[365439939,1749673843851,-500.0,0.00019178,2]
[365439940,1749673843859,-500.0,0.00019178,2]
[365439941,1749673843868,-500.0,0.00019178,2]
[365439942,1749673843877,-500.0,0.00019178,2]
[365439943,1749673843886,-500.0,0.00019178,2]
[365439944,1749673843895,-500.0,0.00019178,2]
[365439945,1749673843905,-500.0,0.00019178,2]
[365439946,1749673843914,-500.0,0.00019178,2]
[365439947,1749673843924,-500.0,0.00019178,2]
[365439948,1749673843933,-500.0,0.00019178,2]
[365439949,1749673843942,-500.0,0.00019178,2]
[365439950,1749673843951,-500.0,0.00019178,2]
[365439951,1749673843960,-500.0,0.00019178,2]
[365439952,1749673843969,-500.0,0.00019178,2]
[365439953,1749673843978,-500.0,0.00019178,2]
[365439954,1749673843987,-500.0,0.00019178,2]
[365439955,1749673843996,-302.44481348,0.00019178,2]
[365439956,1749673844005,-500.0,0.00019178,2]
[365439957,1749673844014,-500.0,0.00019178,2]
[365439958,1749673844023,-500.0,0.00019178,2]
[365439959,1749673844031,-500.0,0.00019178,2]
[365439960,1749673844041,-500.0,0.00019178,2]
[365439961,1749673844050,-500.0,0.00019178,2]
[365439962,1749673844059,-500.0,0.00019178,2]
[365439963,1749673844067,-500.0,0.00019178,2]
[365439964,1749673844076,-500.0,0.00019178,2]
[365439965,1749673844085,-500.0,0.00019178,2]
[365439966,1749673844094,-500.0,0.00019178,2]
[365439967,1749673844103,-500.0,0.00019178,2]
[365439968,1749673844112,-500.0,0.00019178,2]
[365439969,1749673844121,-500.0,0.00019178,2]
[365439970,1749673844130,-500.0,0.00019178,2]
[365439971,1749673844139,-490.0,0.00019178,2]
[365439972,1749673844148,-480.0,0.00019178,2]
[365439973,1749673844158,-490.0,0.00019178,2]
[365439974,1749673844167,-490.0,0.00019178,2]
[365439975,1749673844176,-490.0,0.00019178,2]
[365439976,1749673844185,-490.0,0.00019178,2]
[365439977,1749673844194,-751.94,0.00019178,2]
[365439978,1749673844203,-809.34,0.00019178,2]
[365439979,1749673844212,-151.0,0.00019178,2]
[365439980,1749673844221,-431.0,0.00019178,2]
[365439981,1749673844230,-204.68,0.00019178,2]
[365439982,1749673844239,-301.47,0.00019178,2]
[365439983,1749673844248,-551.23580943,0.00019195,2]
[365439984,1749673844258,-6.57967792,0.000192,7]
[365439985,1749673844276,-1093.42032208,0.000192,7]
[365439986,1749673844285,-302.63085258,0.00019206,2]
[365439987,1749673844296,-6274.49975186,0.00019206,2]
[365439988,1749673844307,-3318.18738505,0.00019206,2]
[365439989,1749673844316,-151.0,0.00019216,2]
[365439990,1749673844325,-151.0,0.00019216,2]
[365439991,1749673844334,-151.0,0.00019216,2]
[365439992,1749673844343,-178.427847,0.00019216,2]
[365439993,1749673844353,-178.427847,0.00019216,2]
[365439994,1749673844362,-151.0,0.00019216,2]
[365439995,1749673844371,-204.7385701,0.00019218,2]
[365439996,1749673844380,-833.29909032,0.00019253,2]
[365439997,1749673844391,-2456.68932698,0.00019261,2]
[365439998,1749673844400,-204.7385701,0.00019264,2]
[365439999,1749673844410,-1119.426,0.000193,2]
[365440000,1749673844419,-1500.0,0.000193,7]
[365440001,1749673844428,-1000.0,0.000193,2]
[365440002,1749673844439,-204.7385701,0.00019309,2]
[365440003,1749673844448,-647.11707419,0.0001931,2]
[365440004,1749673844457,-551.23580943,0.00019313,2]
[365440005,1749673844466,-2473.82,0.0001933,2]
[365440006,1749673844475,-168.0,0.00019338,2]
[365440007,1749673844484,-500.0,0.00019341,2]
[365440008,1749673844494,-500.0,0.00019341,2]
[365440009,1749673844503,-500.0,0.00019341,2]
[365440010,1749673844513,-518.62,0.00019341,2]
[365440011,1749673844522,-151.0,0.00019342,2]
[365440012,1749673844534,-151.0,0.00019342,2]
[365440013,1749673844544,-151.0,0.00019342,2]
[365440014,1749673844553,-282.403879,0.00019342,2]
[365440015,1749673844562,-241.939365,0.00019342,2]
[365440016,1749673844572,-241.939365,0.00019342,2]
[365440017,1749673844582,-241.939365,0.00019342,2]
[365440018,1749673844591,-241.939365,0.00019342,2]
[365440019,1749673844602,-158.059182,0.00019342,2]
[365440020,1749673844611,-178.427847,0.00019342,2]
[365440021,1749673844621,-178.427847,0.00019342,2]
[365440022,1749673844630,-178.427847,0.00019342,2]
[365440023,1749673844640,-178.427847,0.00019342,2]
[365440024,1749673844649,-151.377898,0.00019342,2]
[365440025,1749673844659,-221.640154,0.00019342,2]
[365440026,1749673844669,-221.640154,0.00019342,2]
[365440027,1749673844679,-221.640154,0.00019342,2]
[365440028,1749673844688,-221.640154,0.00019342,2]
[365440029,1749673844698,-203.6,0.00019342,2]
[365440030,1749673844707,-181.09,0.00019342,2]
[365440031,1749673844717,-470.0,0.00019342,2]
[365440032,1749673844731,-367.47,0.00019342,2]
[365440033,1749673844741,-286.75,0.00019342,2]
[365440034,1749673844759,-490.0,0.00019342,2]
[365440035,1749673844779,-490.0,0.00019342,2]
[365440036,1749673844791,-490.0,0.00019342,2]
[365440037,1749673844800,-381.17663873,0.00019342,2]
[365440038,1749673845072,-801.4760414,0.00019095,2]
[365440039,1749673845082,-420.0,0.00019178,2]
[365440040,1749673845091,-108.82336127,0.00019342,2]
[365440041,1749673845100,-490.0,0.00019342,2]
[365440042,1749673845110,-490.0,0.00019342,2]
[365440043,1749673845119,-634.73570662,0.00019342,2]
[365440044,1749673845128,-490.0,0.00019342,2]
[365440045,1749673845137,-490.0,0.00019342,2]
[365440046,1749673845146,-613.66939585,0.00019342,2]
[365440047,1749673845155,-490.0,0.00019342,2]
[365440048,1749673845164,-490.0,0.00019342,2]
[365440049,1749673845173,-490.0,0.00019342,2]
[365440050,1749673845182,-490.0,0.00019342,2]
[365440051,1749673845191,-517.78,0.00019342,2]
[365440052,1749673845200,-490.0,0.00019342,2]
[365440053,1749673845210,-459.94366933,0.00019342,2]
[365440054,1749673845219,-460.0,0.00019342,2]
[365440055,1749673845228,-490.0,0.00019342,2]
[365440056,1749673845237,-460.0,0.00019342,2]
[365440057,1749673845246,-490.0,0.00019342,2]
[365440058,1749673845256,-450.0,0.00019342,2]
[365440059,1749673845265,-490.0,0.00019342,2]
[365440060,1749673845275,-490.0,0.00019342,2]
[365440061,1749673845284,-491.87,0.00019342,2]
[365440062,1749673845293,-48.78089558,0.00019342,2]
[365440063,1749673845313,-441.21910442,0.00019342,2]
[365440064,1749673845322,-263.40589558,0.00019342,2]
[365440065,1749673845334,-374.73410442,0.00019342,2]
[365440066,1749673845343,-171.86,0.00019342,2]
[365440067,1749673845353,-490.0,0.00019342,2]
[365440068,1749673845362,-832.9,0.00019342,2]
[365440069,1749673845371,-761.798934,0.00019342,2]
[365440070,1749673845381,-450.0,0.00019342,2]
[365440071,1749673845390,-490.0,0.00019342,2]
[365440072,1749673845400,-490.0,0.00019342,2]
[365440073,1749673845410,-426.396295,0.00019342,2]
[365440074,1749673845420,-490.0,0.00019342,2]
[365440075,1749673845430,-296.23,0.00019342,2]
[365440076,1749673845440,-490.0,0.00019342,2]
[365440077,1749673845449,-450.0,0.00019342,2]
[365440078,1749673845458,-480.0,0.00019342,2]
[365440079,1749673845468,-490.0,0.00019342,2]
[365440080,1749673845477,-473.24204894,0.00019342,2]
[365440081,1749673845486,-490.0,0.00019342,2]
[365440082,1749673845495,-410.0,0.00019342,2]
[365440083,1749673845505,-490.0,0.00019342,2]
[365440084,1749673845514,-490.0,0.00019342,2]
[365440085,1749673845523,-201.89,0.00019342,2]
[365440086,1749673845533,-490.0,0.00019342,2]
[365440087,1749673845542,-490.0,0.00019342,2]
[365440088,1749673845552,-490.0,0.00019342,2]
[365440089,1749673845562,-490.0,0.00019342,2]
[365440090,1749673845572,-490.0,0.00019342,2]
[365440091,1749673845581,-490.0,0.00019342,2]
[365440092,1749673845591,-333.75,0.00019342,2]
[365440093,1749673845601,-490.0,0.00019342,2]
[365440094,1749673845610,-470.0,0.00019342,2]
[365440095,1749673845620,-490.0,0.00019342,2]
[365440096,1749673845629,-497.2,0.00019342,2]
[365440097,1749673845639,-490.0,0.00019342,2]
[365440098,1749673845649,-490.0,0.00019342,2]
[365440099,1749673845659,-490.0,0.00019342,2]
[365440100,1749673845668,-490.0,0.00019342,2]
[365440101,1749673845678,-470.0,0.00019342,2]
[365440102,1749673845687,-470.0,0.00019342,2]
[365440103,1749673845696,-470.0,0.00019342,2]
[365440104,1749673845706,-540.61,0.00019342,2]
[365440105,1749673845716,-607.6,0.00019342,2]
[365440106,1749673845727,-490.0,0.00019342,2]
[365440107,1749673845737,-490.0,0.00019342,2]
[365440108,1749673845746,-490.0,0.00019342,2]
[365440109,1749673845756,-328.43,0.00019342,2]
[365440110,1749673845766,-460.0,0.00019342,2]
[365440111,1749673845775,-490.0,0.00019342,2]
[365440112,1749673845785,-398.26239483,0.00019342,2]
[365440113,1749673845795,-207.95,0.00019342,2]
[365440114,1749673845805,-490.0,0.00019342,2]
[365440115,1749673845817,-470.0,0.00019342,2]
[365440116,1749673845827,-490.0,0.00019342,2]
[365440117,1749673845836,-490.0,0.00019342,2]
[365440118,1749673845845,-490.0,0.00019342,2]
[365440119,1749673845854,-537.77,0.00019342,2]
[365440120,1749673845864,-490.0,0.00019342,2]
[365440122,1749673845873,-410.0,0.00019342,2]
[365440123,1749673845882,-501.02,0.00019342,2]
[365440124,1749673845892,-490.0,0.00019342,2]
[365440125,1749673845901,-490.0,0.00019342,2]
[365440126,1749673845911,-490.0,0.00019342,2]
[365440127,1749673845921,-490.0,0.00019342,2]
[365440128,1749673845930,-1468.59,0.00019342,2]
[365440129,1749673845941,-209.91,0.00019342,2]
[365440130,1749673845952,-470.0,0.00019342,2]
[365440131,1749673845962,-490.0,0.00019342,2]
[365440132,1749673845971,-490.0,0.00019342,2]
[365440133,1749673845981,-490.0,0.00019342,2]
[365440135,1749673845991,-470.0,0.00019342,2]
[365440137,1749673846000,-4883.72,0.00019342,2]
[365440138,1749673846009,-490.0,0.00019342,2]
[365440141,1749673846019,-490.0,0.00019342,2]
[365440143,1749673846028,-1010.16,0.00019342,2]
[365440145,1749673846038,-490.0,0.00019342,2]
[365440147,1749673846048,-490.0,0.00019342,2]
[365440149,1749673846058,-604.86732954,0.00019342,2]
[365440151,1749673846067,-490.0,0.00019342,2]
[365440153,1749673846077,-450.0,0.00019342,2]
[365440154,1749673846086,-470.0,0.00019342,2]
[365440156,1749673846095,-490.0,0.00019342,2]
[365440158,1749673846105,-2677.03,0.00019342,2]
[365440159,1749673846114,-541.24,0.00019342,2]
[365440160,1749673846125,-490.0,0.00019342,2]
[365440161,1749673846134,-641.65,0.00019342,2]
[365440162,1749673846145,-912.66,0.00019342,2]
[365440163,1749673846155,-490.0,0.00019342,2]
[365440164,1749673846164,-470.0,0.00019342,2]
[365440165,1749673846174,-470.0,0.00019342,2]
[365440166,1749673846187,-490.0,0.00019342,2]
[365440167,1749673846197,-490.0,0.00019342,2]
[365440168,1749673846207,-490.0,0.00019342,2]
[365440169,1749673846217,-480.0,0.00019342,2]
[365440170,1749673846227,-470.0,0.00019342,2]
[365440171,1749673846238,-490.0,0.00019342,2]
[365440172,1749673846248,-490.0,0.00019342,2]
[365440173,1749673846258,-470.0,0.00019342,2]
[365440174,1749673846267,-480.0,0.00019342,2]
[365440175,1749673846277,-490.0,0.00019342,2]
[365440176,1749673846286,-464.99,0.00019342,2]
[365440177,1749673846296,-470.0,0.00019342,2]
[365440178,1749673846305,-490.0,0.00019342,2]
[365440179,1749673846315,-490.0,0.00019342,2]
[365440180,1749673846324,-490.0,0.00019342,2]
[365440181,1749673846334,-470.0,0.00019342,2]
[365440182,1749673846344,-417.22,0.00019342,2]
[365440183,1749673846354,-490.0,0.00019342,2]
[365440184,1749673846364,-570.19,0.00019342,2]
[365440185,1749673846374,-646.4,0.00019342,2]
[365440186,1749673846384,-539.59,0.00019342,2]
[365440187,1749673846394,-490.0,0.00019342,2]
[365440188,1749673846404,-569.05,0.00019342,2]
[365440189,1749673846414,-490.0,0.00019342,2]
[365440190,1749673846423,-532.63,0.00019342,2]
[365440191,1749673846433,-490.0,0.00019342,2]
[365440192,1749673846443,-490.0,0.00019342,2]
[365440193,1749673846453,-490.0,0.00019342,2]
[365440194,1749673846463,-7196.45,0.00019342,2]
[365440195,1749673846473,-783.37,0.00019342,2]
[365440197,1749673846482,-490.0,0.00019342,2]
[365440199,1749673846492,-490.0,0.00019342,2]
[365440201,1749673846502,-1553.86,0.00019342,2]
[365440203,1749673846512,-470.0,0.00019342,2]
[365440205,1749673846522,-490.0,0.00019342,2]
[365440207,1749673846531,-490.0,0.00019342,2]
[365440209,1749673846541,-490.0,0.00019342,2]
[365440211,1749673846550,-490.0,0.00019342,2]
[365440213,1749673846561,-490.0,0.00019342,2]
[365440215,1749673846571,-490.0,0.00019342,2]
[365440217,1749673846580,-816.83,0.00019342,2]
[365440219,1749673846590,-510.71,0.00019342,2]
[365440221,1749673846600,-540.45,0.00019342,2]
[365440223,1749673846609,-490.0,0.00019342,2]
[365440225,1749673846620,-912.96,0.00019342,2]
[365440227,1749673846630,-490.0,0.00019342,2]
[365440228,1749673846639,-490.0,0.00019342,2]
[365440229,1749673846649,-490.0,0.00019342,2]
[365440230,1749673846659,-754.58,0.00019342,2]
[365440231,1749673846670,-490.0,0.00019342,2]
[365440232,1749673846680,-638.54,0.00019342,2]
[365440233,1749673846690,-490.0,0.00019342,2]
[365440234,1749673846699,-490.0,0.00019342,2]
[365440235,1749673846710,-602.3,0.00019342,2]
[365440236,1749673846723,-490.0,0.00019342,2]
[365440237,1749673846732,-699.14,0.00019342,2]
[365440238,1749673846742,-490.0,0.00019342,2]
[365440239,1749673846752,-490.0,0.00019342,2]
[365440240,1749673846763,-490.0,0.00019342,2]
[365440241,1749673846774,-490.0,0.00019342,2]
[365440242,1749673846783,-953.09,0.00019342,2]
[365440243,1749673846793,-490.0,0.00019342,2]
[365440244,1749673846803,-490.0,0.00019342,2]
[365440245,1749673846813,-972.75,0.00019342,2]
[365440246,1749673846825,-490.0,0.00019342,2]
[365440247,1749673846835,-603.87,0.00019342,2]
[365440248,1749673846845,-490.0,0.00019342,2]
[365440249,1749673846855,-490.0,0.00019342,2]
[365440250,1749673846864,-627.03878924,0.00019342,2]
[365440251,1749673846874,-1526.34,0.00019342,2]
[365440252,1749673846884,-490.0,0.00019342,2]
[365440253,1749673846894,-1450.23,0.00019342,2]
[365440254,1749673846904,-490.0,0.00019342,2]
[365440255,1749673846913,-380.42543664,0.00019342,2]
[365440256,1749673846923,-2272.49,0.00019342,2]
[365440257,1749673846934,-490.0,0.00019342,2]
[365440258,1749673846945,-490.0,0.00019342,2]
[365440259,1749673846955,-490.0,0.00019342,2]
[365440260,1749673846965,-490.0,0.00019342,2]
[365440261,1749673846975,-490.0,0.00019342,2]
[365440262,1749673846985,-1038.18,0.00019342,2]
[365440263,1749673846995,-628.39,0.00019342,2]
[365440264,1749673847005,-1551.69,0.00019342,2]
[365440265,1749673847015,-490.0,0.00019342,2]
[365440266,1749673847025,-490.0,0.00019342,2]
[365440267,1749673847035,-490.0,0.00019342,2]
[365440268,1749673847045,-490.0,0.00019342,2]
[365440269,1749673847054,-490.0,0.00019342,2]
[365440270,1749673847064,-627.48,0.00019342,2]
[365440271,1749673847073,-490.0,0.00019342,2]
[365440272,1749673847083,-2493.62,0.00019342,2]
[365440273,1749673847092,-3926.31,0.00019342,2]
[365440274,1749673847102,-490.0,0.00019342,2]
[365440275,1749673847111,-553.27,0.00019342,2]
[365440276,1749673847120,-490.0,0.00019342,2]
[365440277,1749673847130,-523.04,0.00019342,2]
[365440278,1749673847139,-490.0,0.00019342,2]
[365440279,1749673847148,-490.0,0.00019342,2]
[365440280,1749673847159,-490.0,0.00019342,2]
[365440281,1749673847168,-2131.17,0.00019342,2]
[365440282,1749673847177,-850.57,0.00019342,2]
[365440283,1749673847186,-5768.21,0.00019342,2]
[365440284,1749673847196,-1632.81,0.00019342,2]
[365440285,1749673847205,-490.0,0.00019342,2]
[365440286,1749673847215,-602.06,0.00019342,2]
[365440287,1749673847224,-570.77,0.00019342,2]
[365440288,1749673847234,-1000.0,0.00019342,2]
[365440289,1749673847243,-490.0,0.00019342,2]
[365440290,1749673847252,-490.0,0.00019342,2]
[365440291,1749673847262,-490.0,0.00019342,2]
[365440292,1749673847271,-490.0,0.00019342,2]
[365440293,1749673847281,-490.0,0.00019342,2]
[365440294,1749673847290,-647.43,0.00019342,2]
[365440295,1749673847300,-506.59,0.00019342,2]
[365440296,1749673847309,-490.0,0.00019342,2]
[365440297,1749673847318,-490.0,0.00019342,2]
[365440298,1749673847328,-490.0,0.00019342,2]
[365440299,1749673847337,-490.0,0.00019342,2]
[365440300,1749673847347,-647.75,0.00019342,2]
[365440301,1749673847356,-490.0,0.00019342,2]
[365440302,1749673847367,-490.0,0.00019342,2]
[365440303,1749673847377,-490.0,0.00019342,2]
[365440304,1749673847387,-490.0,0.00019342,2]
[365440305,1749673847397,-1755.54,0.00019342,2]
[365440306,1749673847407,-490.0,0.00019342,2]
[365440307,1749673847416,-490.0,0.00019342,2]
[365440308,1749673847426,-627.29,0.00019342,2]
[365440309,1749673847436,-490.0,0.00019342,2]
[365440310,1749673847445,-575.51,0.00019342,2]
[365440311,1749673847455,-490.0,0.00019342,2]
[365440312,1749673847465,-3120.85,0.00019342,2]
[365440313,1749673847475,-490.0,0.00019342,2]
[365440314,1749673847484,-616.67,0.00019342,2]
[365440315,1749673847494,-1411.87,0.00019342,2]
[365440316,1749673847504,-490.0,0.00019342,2]
[365440317,1749673847513,-509.54,0.00019342,2]
[365440318,1749673847523,-472.29123023,0.00019342,2]
[365440319,1749673847533,-3444.31013255,0.00019342,2]
[365440320,1749673847549,-1724.30986745,0.00019342,2]
[365440321,1749673847558,-768.97,0.00019342,2]
[365440322,1749673847568,-490.0,0.00019342,2]
[365440323,1749673847577,-490.0,0.00019342,2]
[365440324,1749673847587,-490.0,0.00019342,2]
[365440325,1749673847597,-490.0,0.00019342,2]
[365440326,1749673847607,-345.62902191,0.00019342,2]
[365440327,1749673847616,-490.0,0.00019342,2]
[365440328,1749673847626,-490.0,0.00019342,2]
[365440329,1749673847636,-490.0,0.00019342,2]
[365440330,1749673847645,-596.5,0.00019342,2]
[365440331,1749673847655,-490.0,0.00019342,2]
[365440332,1749673847665,-490.0,0.00019342,2]
[365440333,1749673847674,-2016.91,0.00019342,2]
[365440334,1749673847684,-667.38,0.00019342,2]
[365440335,1749673847694,-490.0,0.00019342,2]
[365440336,1749673847703,-490.0,0.00019342,2]
[365440337,1749673847713,-490.0,0.00019342,2]
[365440338,1749673847726,-490.0,0.00019342,2]
[365440339,1749673847736,-490.0,0.00019342,2]
[365440340,1749673847746,-751.94,0.00019342,2]
[365440341,1749673847756,-809.34,0.00019342,2]
[365440342,1749673847767,-500.0,0.00019343,2]
[365440343,1749673847776,-200.0,0.00019343,2]
[365440344,1749673847786,-2456.68932698,0.00019352,2]
[365440345,1749673847797,-204.7385701,0.00019355,2]
[365440346,1749673847806,-192.43487476,0.00019393,2]
[365440347,1749673847815,-1900.0,0.000194,7]
[365440348,1749673847825,-1000.0,0.000194,2]
[365440349,1749673847834,-151.0,0.000194,2]
[365440350,1749673847844,-151.0,0.000194,2]
[365440351,1749673847853,-151.0,0.000194,2]
[365440352,1749673847862,-151.0,0.000194,2]
[365440353,1749673847872,-204.7385701,0.000194,2]
[365440354,1749673847881,-333.06773102,0.00019406,2]
[365440355,1749673847891,-192.43487476,0.00019406,2]
[365440356,1749673847900,-1993.61153457,0.00019408,2]
[365440357,1749673847911,-551.23580943,0.0001943,2]
[365440358,1749673847921,-2456.68932698,0.00019443,2]
[365440359,1749673847930,-204.7385701,0.00019445,2]
[365440360,1749673847940,-500.0,0.00019479,2]
[365440361,1749673847950,-150.0,0.00019479,2]
[365440362,1749673847960,-225.94750569,0.00019479,2]
[365440363,1749673847970,-500.0,0.00019479,2]
[365440364,1749673848236,-150.0,0.00019479,2]
[365440365,1749673848246,-500.0,0.00019479,2]
[365440366,1749673848255,-500.0,0.00019479,2]
[365440367,1749673848265,-171.16832666,0.00019479,2]
[365440368,1749673848274,-500.0,0.00019479,2]
[365440369,1749673848283,-500.0,0.00019479,2]
[365440370,1749673848293,-500.0,0.00019479,2]
[365440371,1749673848303,-151.94949467,0.00019479,2]
[365440372,1749673848312,-200.0,0.00019479,2]
[365440373,1749673848321,-150.0,0.00019479,2]
[365440374,1749673848331,-171.67088512,0.00019479,2]
[365440375,1749673848340,-150.0,0.00019479,2]
[365440376,1749673848350,-500.0,0.00019479,2]
[365440377,1749673848359,-156.49239323,0.00019479,2]
[365440378,1749673848369,-150.0,0.00019479,2]
[365440379,1749673848378,-150.0,0.00019479,2]
[365440380,1749673848388,-155.95281392,0.00019479,2]
[365440381,1749673848397,-150.0,0.00019479,2]
[365440382,1749673848406,-151.74074967,0.00019479,2]
[365440383,1749673848416,-158.03830528,0.00019479,2]
[365440384,1749673848427,-150.0,0.00019479,2]
[365440385,1749673848436,-1993.61153452,0.0001949,2]
[365440386,1749673848446,-204.7385701,0.00019491,2]
[365440387,1749673848455,-97923.33134298,0.00019492,2]
[365440388,1749673848767,-801.4760414,0.00019113,2]
[365440389,1749673848776,-151.0,0.000194,2]
[365440390,1749673848786,-5265.74486409,0.00019492,2]
[365440391,1749673848799,-2815.60456,0.00019492,2]
[365440392,1749673848816,-896.75702627,0.00019492,2]
[365440393,1749673932628,250.0,0.00017891,2]
[365440394,1749673948937,152.0,0.00016822,3]
[365440395,1749674260917,166.51,0.00017931,2]
[365440396,1749674265313,150.0,0.00017931,7]
[365440399,1749674490708,386.41,0.00013699,2]
[365440400,1749674579390,172.58,0.00017814,2]
[365440401,1749674608619,700.0,0.00015269,2]
[365440402,1749674610503,5072.30988977,0.00017814,2]
[365440403,1749674610527,18820.62011023,0.00017814,2]
[365440404,1749674610678,700.0,0.00016639,2]
[365440405,1749674612689,700.0,0.00017735,2]
[365440406,1749674652040,204.0,0.00017164,2]
[365440407,1749674667775,500.0,0.00016365,2]